bitfinex/quotes_BTCUSD_20241107
["timestamp","ask_amount","ask_price","bid_price","bid_amount"]
[1730985951455,0.25363279,74820.0,74819.0,0.01251307]
[1730985951857,0.25463279,74820.0,74819.0,0.01251307]
[1730985952053,0.25363279,74820.0,74819.0,0.01251307]
[1730985952460,0.25963279,74820.0,74819.0,0.01251307]
[1730985953062,0.27956317,74820.0,74818.0,0.26503655]
[1730985953537,0.05979112,74819.0,74818.0,0.26503655]
[1730985953751,0.13224102,74819.0,74818.0,0.26503655]
[1730985954394,0.17209849,74819.0,74818.0,0.26503655]
[1730985954723,0.17209849,74819.0,74818.0,0.27754794]
[1730985954929,0.17209849,74819.0,74818.0,0.26503655]
[1730985955131,0.17409849,74819.0,74818.0,0.26503655]
[1730985956426,0.17909849,74819.0,74818.0,0.26503655]
[1730985957429,0.13924102,74819.0,74818.0,0.26503655]
[1730985963863,0.19903214,74819.0,74818.0,0.26503655]
[1730985965691,0.19903815,74819.0,74818.0,0.26503655]
[1730985965902,0.04686667,74819.0,74818.0,0.2775461]
[1730985966108,0.007,74819.0,74818.0,0.3252461]
[1730985966328,0.007,74819.0,74818.0,0.4068461]
[1730985966763,0.007,74819.0,74818.0,0.3917793]
[1730985968538,0.13924102,74819.0,74818.0,0.2624793]
[1730985969547,0.13924102,74819.0,74818.0,0.26248115]
[1730985969961,0.17911011,74819.0,74818.0,0.26248115]
[1730985970170,0.17911011,74819.0,74818.0,0.262481]
[1730985970372,0.13924102,74819.0,74818.0,0.262481]
[1730985970587,0.007,74819.0,74818.0,0.392681]
[1730985973415,0.007,74819.0,74818.0,0.44703344]
[1730985974500,0.007,74819.0,74818.0,0.45203344]
[1730985975802,0.001664,74827.0,74819.0,0.005]
[1730985976048,0.001664,74827.0,74818.0,0.43452219]
[1730985976314,0.001664,74827.0,74819.0,0.005]
[1730985976531,0.07853103,74820.0,74818.0,0.38016975]
[1730985976745,0.07853103,74824.0,74818.0,0.38016975]
[1730985977228,0.001664,74827.0,74818.0,0.38016975]
[1730985979438,0.001664,74827.0,74820.0,0.005]
[1730985986925,0.001664,74827.0,74826.0,0.005]
[1730985987149,0.001664,74827.0,74826.0,0.1321]
[1730985987564,0.001664,74827.0,74826.0,0.1341]
[1730985987813,0.001664,74827.0,74826.0,0.13477241]
[1730985988265,0.001664,74827.0,74826.0,0.1321]
[1730985988717,0.001664,74827.0,74826.0,0.18704669]
[1730985989572,0.001664,74827.0,74826.0,0.27821206]
[1730985989794,0.001664,74827.0,74826.0,0.19700869]
[1730985990942,0.001664,74827.0,74826.0,0.19500869]
[1730985991153,0.001664,74827.0,74826.0,0.19000869]
[1730985992251,0.001664,74827.0,74826.0,0.18504669]
[1730985992661,0.001664,74827.0,74826.0,0.18771916]
[1730985993083,0.001664,74827.0,74826.0,0.18504669]
[1730985995384,0.001664,74827.0,74826.0,0.18771917]
[1730985997113,0.001664,74827.0,74826.0,0.19968117]
[1730985997317,0.001664,74827.0,74826.0,0.19700869]
[1730985998204,0.001664,74827.0,74826.0,0.19500869]
[1730985999533,0.001664,74827.0,74826.0,0.19700869]
[1730985999765,0.001664,74827.0,74826.0,0.32924971]
[1730986000009,0.001664,74827.0,74826.0,0.45224971]
[1730986001095,0.001664,74827.0,74826.0,0.45024971]
[1730986001315,0.001664,74827.0,74826.0,0.45224971]
[1730986004763,0.0005,74834.0,74826.0,0.45224971]
[1730986004764,0.0005,74834.0,74833.0,0.171062]
[1730986004987,0.0005,74834.0,74833.0,0.51121607]
[1730986005197,0.0005,74834.0,74833.0,0.50854405]
[1730986006722,0.0005,74834.0,74833.0,0.43001302]
[1730986009311,0.0005,74834.0,74833.0,0.40330302]
[1730986014511,0.0005,74834.0,74833.0,0.15330302]
[1730986014757,0.0005,74834.0,74833.0,0.13224102]
[1730986017765,0.0005,74834.0,74833.0,0.18004102]
[1730986019287,0.002164,74834.0,74833.0,0.18004102]
[1730986019495,0.002164,74834.0,74833.0,0.18271296]
[1730986020577,0.002164,74834.0,74833.0,0.28004102]
[1730986022443,0.20032051,74847.0,74844.0,0.1]
[1730986022688,0.20032051,74847.0,74844.0,0.40785102]
[1730986023835,0.001664,74848.0,74844.0,0.40785102]
[1730986024266,0.001664,74848.0,74844.0,0.38114102]
[1730986024706,0.001664,74848.0,74847.0,0.07853103]
[1730986024917,0.001664,74848.0,74847.0,0.21077205]
[1730986025137,0.001664,74848.0,74847.0,0.31077205]
[1730986026263,0.001664,74848.0,74847.0,0.23224102]
[1730986027379,0.001664,74848.0,74847.0,0.25219811]
[1730986030556,0.001664,74848.0,74847.0,0.2522152]
[1730986030769,0.001664,74848.0,74847.0,0.25488676]
[1730986034212,0.001664,74848.0,74847.0,0.25489021]
[1730986035392,0.001664,74848.0,74847.0,0.25221865]
[1730986035991,0.001664,74848.0,74847.0,0.26737665]
[1730986036444,0.001664,74848.0,74847.0,0.26470517]
[1730986036603,0.001664,74848.0,74847.0,0.26737665]
[1730986036828,0.001664,74848.0,74847.0,0.34590768]
[1730986037046,0.001664,74848.0,74847.0,0.3432362]
[1730986037256,0.001664,74848.0,74847.0,0.3662362]
[1730986037474,0.001664,74848.0,74847.0,0.4972362]
[1730986037890,0.001664,74848.0,74847.0,0.46477205]
[1730986038131,0.20032051,74860.0,74848.0,0.123]
[1730986038345,0.20032051,74852.0,74850.0,0.123]
[1730986038575,0.20032051,74860.0,74852.0,0.023]
[1730986038796,0.20032051,74860.0,74857.0,0.07853103]
[1730986039013,0.27732051,74860.0,74858.0,0.01248402]
[1730986039233,0.077,74860.0,74859.0,0.01248402]
[1730986043961,0.077,74860.0,74859.0,0.06648169]
[1730986044167,0.078664,74860.0,74859.0,0.06648169]
[1730986045405,0.078664,74860.0,74859.0,0.06648301]
[1730986045610,0.078664,74860.0,74859.0,0.01248534]
[1730986047048,0.001664,74860.0,74859.0,0.01248534]
[1730986047657,0.001664,74860.0,74859.0,0.22325739]
[1730986047889,0.001664,74860.0,74859.0,0.14472636]
[1730986048533,0.001664,74860.0,74859.0,0.14739749]
[1730986049173,0.001664,74860.0,74859.0,0.14473299]
[1730986049640,0.001664,74860.0,74859.0,0.19822441]
[1730986052101,0.001664,74860.0,74859.0,0.19823365]
[1730986052929,0.001664,74860.0,74859.0,0.18573244]
[1730986053160,0.001664,74860.0,74859.0,0.19823568]
[1730986056936,0.001664,74860.0,74859.0,0.18573244]
[1730986057139,0.001664,74860.0,74859.0,0.05349142]
[1730986057342,0.001664,74860.0,74859.0,0.01250244]
[1730986059195,0.001664,74860.0,74859.0,0.14741469]
[1730986059735,0.001664,74860.0,74859.0,0.20224186]
[1730986060145,0.001664,74860.0,74859.0,0.19957063]
[1730986060830,0.001664,74860.0,74859.0,0.19957295]
[1730986061453,0.084164,74860.0,74859.0,0.06733193]
[1730986061804,0.001664,74860.0,74859.0,0.27810398]
[1730986062017,0.0825,74875.0,74859.0,0.35420398]
[1730986062218,0.20032051,74866.0,74865.0,0.07853103]
[1730986062450,0.0825,74875.0,74865.0,0.09103579]
[1730986062654,0.20032051,74868.0,74866.0,0.01517577]
[1730986062860,0.0825,74875.0,74867.0,0.01250476]
[1730986063089,0.0825,74875.0,74868.0,0.01517575]
[1730986063299,0.0825,74875.0,74869.0,0.01250476]
[1730986064102,0.0825,74875.0,74869.0,0.01517575]
[1730986064309,0.0005,74880.0,74869.0,0.22327681]
[1730986064530,0.0005,74880.0,74869.0,0.32327681]
[1730986064913,0.0005,74880.0,74869.0,0.37677886]
[1730986066311,0.0005,74880.0,74869.0,0.50217886]
[1730986066732,0.0005,74880.0,74869.0,0.54082585]
[1730986066946,0.0005,74880.0,74870.0,0.1]
[1730986067158,0.20032051,74875.0,74871.0,0.14741638]
[1730986067359,0.0005,74880.0,74877.0,0.07853103]
[1730986067573,0.0005,74880.0,74878.0,0.03747418]
[1730986068378,0.0819,74888.0,74879.0,0.1236]
[1730986068379,0.0005,74888.0,74879.0,0.1236]
[1730986068586,0.20032051,74886.0,74883.0,0.07853103]
[1730986068797,0.20032051,74886.0,74884.0,0.03747418]
[1730986068973,0.0005,74888.0,74885.0,0.03747418]
[1730986069199,0.0005,74888.0,74883.0,0.21077205]
[1730986069200,0.0005,74888.0,74886.0,0.03747418]
[1730986069405,0.0005,74888.0,74887.0,0.04014449]
[1730986070431,0.0005,74888.0,74887.0,0.25091654]
[1730986070640,0.0005,74888.0,74887.0,0.24824623]
[1730986070849,0.0005,74888.0,74887.0,0.1697152]
[1730986071272,0.0005,74888.0,74887.0,0.17238529]
[1730986071681,0.0005,74888.0,74887.0,0.16961277]
[1730986072422,0.0005,74888.0,74887.0,0.17228286]
[1730986073558,0.0005,74888.0,74887.0,0.03737175]
[1730986074900,0.0005,74888.0,74887.0,0.16961277]
[1730986075095,0.0005,74888.0,74887.0,0.03737175]
[1730986075662,0.0005,74888.0,74887.0,0.0373393]
[1730986076527,0.0005,74888.0,74887.0,0.09074554]
[1730986076917,0.0005,74888.0,74887.0,0.0373393]
[1730986077772,0.0772,74892.0,74887.0,0.0373393]
[1730986077985,0.0772,74892.0,74888.0,0.0373393]
[1730986078192,0.0772,74892.0,74889.0,0.0373393]
[1730986078367,0.0772,74892.0,74890.0,0.0373393]
[1730986078608,0.0772,74892.0,74891.0,0.0373393]
[1730986078963,0.0772,74892.0,74879.0,0.1]
[1730986079168,0.0772,74892.0,74891.0,0.01244166]
[1730986079417,0.0772,74892.0,74891.0,0.03732498]
[1730986080137,0.00254,74900.0,74891.0,0.03732498]
[1730986080335,0.00254,74900.0,74893.0,0.02073506]
[1730986080624,0.079,74899.0,74894.0,0.03732498]
[1730986080849,0.00054,74900.0,74895.0,0.03999522]
[1730986081004,0.00054,74900.0,74896.0,0.03732498]
[1730986081181,0.00054,74900.0,74897.0,0.03732498]
[1730986081382,0.00054,74900.0,74899.0,0.02073506]
[1730986081589,0.00054,74900.0,74888.0,0.1226]
[1730986081830,0.00054,74900.0,74899.0,0.05804822]
[1730986082032,0.00054,74900.0,74899.0,0.03731641]
[1730986083970,0.00054,74900.0,74899.0,0.03731401]
[1730986084684,0.00054,74900.0,74899.0,0.05804547]
[1730986085177,0.12174,74900.0,74883.0,0.1]
[1730986085413,0.12174,74900.0,74887.0,0.20032051]
[1730986085414,0.002,74892.0,74887.0,0.20032051]
[1730986085699,0.079,74891.0,74889.0,0.02073796]
[1730986085899,0.079,74891.0,74890.0,0.05806561]
[1730986087535,0.079,74891.0,74890.0,0.03732765]
[1730986088421,0.00054,74900.0,74890.0,0.42296898]
[1730986088653,0.20032051,74899.0,74891.0,0.29663887]
[1730986088913,0.20032051,74899.0,74891.0,0.25664133]
[1730986089128,0.00054,74900.0,74892.0,0.03735204]
[1730986089347,0.00054,74900.0,74893.0,0.16162078]
[1730986091182,0.00054,74900.0,74898.0,0.12440031]
[1730986091405,0.00054,74900.0,74899.0,0.13224102]
[1730986091648,0.00054,74900.0,74899.0,0.13491067]
[1730986091866,0.00054,74900.0,74899.0,0.21341067]
[1730986092571,0.00054,74900.0,74899.0,0.34012067]
[1730986092798,0.00054,74900.0,74899.0,0.33745102]
[1730986093558,0.00054,74900.0,74899.0,0.40735102]
[1730986093771,0.000757,74902.0,74899.0,0.40735102]
[1730986094002,0.000757,74902.0,74901.0,0.023]
[1730986094214,0.000757,74902.0,74901.0,0.25791052]
[1730986095155,0.000757,74902.0,74901.0,0.25524102]
[1730986095384,0.000757,74902.0,74901.0,0.25791052]
[1730986096032,0.000757,74902.0,74901.0,0.25524102]
[1730986096246,0.000757,74902.0,74901.0,0.25791052]
[1730986096883,0.000757,74902.0,74901.0,0.25524102]
[1730986097107,0.000757,74902.0,74901.0,0.23224102]
[1730986098518,0.002164,74912.0,74902.0,0.1]
[1730986098797,0.002164,74912.0,74904.0,0.1]
[1730986098958,0.002164,74912.0,74905.0,0.1521723]
[1730986099166,0.002164,74912.0,74906.0,0.01993128]
[1730986099370,0.002164,74912.0,74906.0,0.1521723]
[1730986099791,0.002164,74912.0,74906.0,0.15484184]
[1730986100200,0.002164,74912.0,74906.0,0.1521723]
[1730986100400,0.002164,74912.0,74906.0,0.15484172]
[1730986100753,0.002164,74912.0,74906.0,0.1521723]
[1730986101274,0.002164,74912.0,74906.0,0.1548418]
[1730986101695,0.002164,74912.0,74906.0,0.1521723]
[1730986102102,0.002164,74912.0,74906.0,0.16213529]
[1730986102315,0.002164,74912.0,74906.0,0.16480482]
[1730986102521,0.002164,74912.0,74906.0,0.22018728]
[1730986102724,0.002164,74912.0,74906.0,0.22018656]
[1730986103144,0.002164,74912.0,74906.0,0.21751029]
[1730986103894,0.20032051,74911.0,74907.0,0.16212783]
[1730986104153,0.002164,74912.0,74908.0,0.02988681]
[1730986104366,0.002164,74912.0,74909.0,0.02988681]
[1730986104557,0.002164,74912.0,74908.0,0.13224102]
[1730986104558,0.002164,74912.0,74910.0,0.02988681]
[1730986104773,0.002164,74912.0,74911.0,0.02988681]
[1730986105380,0.002164,74912.0,74911.0,0.01992454]
[1730986105539,0.002164,74912.0,74911.0,0.02988642]
[1730986106142,0.002164,74912.0,74908.0,0.185927]
[1730986106359,0.002164,74912.0,74909.0,0.01992367]
[1730986106579,0.002164,74912.0,74908.0,0.185927]
[1730986107272,0.002164,74912.0,74909.0,0.00996189]
[1730986107499,0.002164,74912.0,74910.0,0.00996189]
[1730986107728,0.002164,74912.0,74911.0,0.00996189]
[1730986108082,0.002164,74912.0,74908.0,0.185927]
[1730986110143,0.002164,74912.0,74908.0,0.05368598]
[1730986110348,0.002164,74912.0,74900.0,0.000832]
[1730986110567,0.1259,74910.0,74900.0,0.000832]
[1730986110774,0.002,74907.0,74900.0,0.000832]
[1730986110982,0.002,74907.0,74900.0,0.05598577]
[1730986111183,0.002,74901.0,74900.0,0.000832]
[1730986111605,0.002,74906.0,74900.0,0.000832]
[1730986111820,0.002,74907.0,74900.0,0.000832]
[1730986112522,0.005,74902.0,74900.0,0.000832]
[1730986114055,0.005,74905.0,74900.0,0.000832]
[1730986118374,0.005,74905.0,74900.0,0.05595767]
[1730986118595,0.005,74905.0,74900.0,0.000832]
[1730986118823,0.00156,74902.0,74900.0,0.000832]
[1730986119044,0.00156,74902.0,74900.0,0.0557625]
[1730986119263,0.00156,74902.0,74900.0,0.000832]
[1730986121722,0.128,74901.0,74900.0,0.000832]
[1730986123554,0.123,74901.0,74900.0,0.000832]
[1730986124467,0.128,74901.0,74900.0,0.000832]
[1730986127986,0.13,74901.0,74900.0,0.000832]
[1730986128209,0.128,74901.0,74900.0,0.000832]
[1730986130029,0.13,74901.0,74900.0,0.000832]
[1730986131917,0.125,74901.0,74900.0,0.000832]
[1730986132123,0.13,74901.0,74900.0,0.000832]
[1730986132320,0.128,74901.0,74900.0,0.000832]
[1730986135144,0.13,74901.0,74900.0,0.000832]
[1730986135395,0.35062981,74901.0,74900.0,0.000832]
[1730986137278,0.27224102,74901.0,74900.0,0.000832]
[1730986151144,0.31206649,74901.0,74900.0,0.000832]
[1730986151370,0.79788228,74901.0,74900.0,0.000832]
[1730986151592,0.053,74892.0,74891.0,0.000832]
[1730986151797,0.0886,74881.0,74880.0,0.20032051]
[1730986152003,0.39249468,74881.0,74880.0,0.20032051]
[1730986152203,0.012,74873.0,74872.0,0.20032051]
[1730986152406,0.002,74870.0,74869.0,0.000832]
[1730986152729,0.007,74870.0,74869.0,0.000832]
[1730986153553,0.012,74870.0,74869.0,0.000832]
[1730986154683,0.012,74870.0,74869.0,0.01333186]
[1730986156285,0.0945,74870.0,74869.0,0.01333186]
[1730986156587,0.1437,74870.0,74869.0,0.01333186]
[1730986156813,0.1437,74870.0,74869.0,0.000832]
[1730986158071,0.27594102,74870.0,74869.0,0.000832]
[1730986158271,0.3112516,74870.0,74869.0,0.000832]
[1730986159533,0.35482213,74870.0,74869.0,0.000832]
[1730986159979,0.4162516,74870.0,74869.0,0.000832]
[1730986161103,0.4492516,74870.0,74869.0,0.000832]
[1730986161687,0.5898156,74870.0,74869.0,0.001832]
[1730986161932,0.4462516,74870.0,74869.0,0.001832]
[1730986162149,0.4232516,74870.0,74869.0,0.001832]
[1730986162330,0.487324,74870.0,74869.0,0.001832]
[1730986162768,0.39294102,74870.0,74869.0,0.001832]
[1730986163817,0.38794102,74870.0,74869.0,0.001832]
[1730986164025,0.26624102,74870.0,74869.0,0.001832]
[1730986164230,0.16624102,74870.0,74869.0,0.001832]
[1730986167318,0.027,74870.0,74869.0,0.001832]
[1730986167552,0.017,74870.0,74869.0,0.001832]
[1730986167762,0.027,74870.0,74869.0,0.001832]
[1730986167971,0.022,74870.0,74869.0,0.000832]
[1730986168203,0.015,74870.0,74869.0,0.000832]
[1730986168493,0.02,74870.0,74869.0,0.000832]
[1730986168952,0.015,74870.0,74869.0,0.000832]
[1730986169167,0.02,74870.0,74869.0,0.000832]
[1730986169618,0.01,74870.0,74869.0,0.000832]
[1730986170732,0.007,74875.0,74869.0,0.000832]
[1730986170988,0.21032051,74895.0,74869.0,0.000832]
[1730986170989,0.005,74871.0,74869.0,0.000832]
[1730986171224,0.005,74870.0,74869.0,0.000832]
[1730986174900,0.005,74872.0,74869.0,0.000832]
[1730986175324,0.005,74870.0,74869.0,0.000832]
[1730986175845,0.012,74870.0,74869.0,0.000832]
[1730986177113,0.01,74849.0,74844.0,0.000832]
[1730986177331,0.14924102,74849.0,74844.0,0.000832]
[1730986177751,0.19267417,74849.0,74844.0,0.000832]
[1730986179078,0.14924102,74849.0,74844.0,0.000832]
[1730986179689,0.15224102,74849.0,74844.0,0.000832]
[1730986180097,0.16024102,74849.0,74848.0,0.001832]
[1730986180301,0.15724102,74849.0,74848.0,0.001832]
[1730986180514,0.16224102,74849.0,74848.0,0.001832]
[1730986181063,0.20550751,74849.0,74848.0,0.001832]
[1730986181556,0.20050751,74849.0,74848.0,0.001832]
[1730986181727,0.20850751,74849.0,74848.0,0.002832]
[1730986182162,0.20050751,74849.0,74848.0,0.001832]
[1730986182611,0.21150751,74849.0,74848.0,0.002832]
[1730986183594,0.29270751,74849.0,74848.0,0.002832]
[1730986185061,0.38412363,74849.0,74848.0,0.002832]
[1730986185262,0.34085714,74849.0,74848.0,0.002832]
[1730986185607,0.44085714,74849.0,74848.0,0.002832]
[1730986186246,0.44585714,74849.0,74848.0,0.002832]
[1730986186700,0.45585714,74849.0,74848.0,0.002832]
[1730986186864,0.41364102,74849.0,74848.0,0.002832]
[1730986187982,0.40364102,74849.0,74848.0,0.002832]
[1730986189055,0.27324102,74849.0,74848.0,0.002832]
[1730986193056,0.26824102,74849.0,74848.0,0.002832]
[1730986193190,0.27324102,74849.0,74848.0,0.002832]
[1730986194417,0.26824102,74849.0,74848.0,0.002832]
[1730986195976,0.43884102,74849.0,74848.0,0.002832]
[1730986197682,0.57244302,74849.0,74848.0,0.002832]
[1730986197891,0.65525326,74849.0,74848.0,0.002832]
[1730986198093,0.67502514,74849.0,74848.0,0.002832]
[1730986198303,0.61201957,74849.0,74848.0,0.002832]
[1730986198508,0.74425926,74849.0,74848.0,0.002832]
[1730986198710,0.73625795,74849.0,74848.0,0.001832]
[1730986198933,0.68568579,74849.0,74848.0,0.000832]
[1730986199058,0.71368579,74849.0,74848.0,0.001832]
[1730986199274,0.70368579,74849.0,74848.0,0.001832]
[1730986199645,0.055,74845.0,74844.0,0.000832]
[1730986199852,0.41169468,74845.0,74844.0,0.000832]
[1730986200741,0.035,74819.0,74818.0,0.24996975]
[1730986200977,0.25424102,74819.0,74818.0,0.24996975]
[1730986201174,1.74924102,74819.0,74818.0,0.24996975]
[1730986202090,1.75424102,74819.0,74818.0,0.24996975]
[1730986202729,1.76124102,74819.0,74818.0,0.24996975]
[1730986202931,1.77824102,74819.0,74818.0,0.24996975]
[1730986203355,1.78724102,74819.0,74818.0,0.24996975]
[1730986203924,1.79224102,74819.0,74818.0,0.24996975]
[1730986204553,1.78724102,74819.0,74818.0,0.24996975]
[1730986204702,1.76424102,74819.0,74818.0,0.24996975]
[1730986204900,1.74924102,74819.0,74818.0,0.24996975]
[1730986205153,1.90254102,74819.0,74818.0,0.24996975]
[1730986205365,2.05719602,74819.0,74818.0,0.24996975]
[1730986205718,2.03619602,74819.0,74818.0,0.24996975]
[1730986206164,2.06219602,74819.0,74818.0,0.24996975]
[1730986207152,1.92854102,74819.0,74818.0,0.24996975]
[1730986207358,1.92354102,74819.0,74818.0,0.24996975]
[1730986207564,0.42854102,74819.0,74818.0,0.24996975]
[1730986208576,0.54607956,74819.0,74818.0,0.24996975]
[1730986208816,0.29824102,74819.0,74818.0,0.24996975]
[1730986209067,0.27524102,74819.0,74818.0,0.24996975]
[1730986209732,0.27524102,74819.0,74818.0,0.24436975]
[1730986210674,0.17524102,74819.0,74818.0,0.24436975]
[1730986212409,0.29969468,74819.0,74818.0,0.24436975]
[1730986213074,0.30469468,74819.0,74818.0,0.24436975]
[1730986213313,0.60647421,74819.0,74818.0,0.24436975]
[1730986213551,0.55019468,74819.0,74818.0,0.24436975]
[1730986213794,0.68384968,74819.0,74818.0,0.24436975]
[1730986214403,0.42574102,74819.0,74818.0,0.24436975]
[1730986214652,0.68384968,74819.0,74818.0,0.24436975]
[1730986214878,2.17984968,74819.0,74818.0,0.24436975]
[1730986215365,2.18184968,74819.0,74818.0,0.24436975]
[1730986215618,2.23664424,74819.0,74818.0,0.24436975]
[1730986215851,2.35691763,74819.0,74818.0,0.24436975]
[1730986216074,2.25064424,74819.0,74818.0,0.24436975]
[1730986216290,2.11698924,74819.0,74818.0,0.24436975]
[1730986216505,2.10298924,74819.0,74818.0,0.24436975]
[1730986216742,2.11698924,74819.0,74818.0,0.24436975]
[1730986217214,0.155,74818.0,74815.0,0.001512]
[1730986217451,0.055,74817.0,74815.0,0.001512]
[1730986217706,0.28724102,74817.0,74815.0,0.001512]
[1730986218222,0.25924102,74817.0,74815.0,0.001512]
[1730986218463,0.25424102,74817.0,74815.0,0.001512]
[1730986219166,0.26824102,74817.0,74815.0,0.001512]
[1730986219398,0.26724102,74817.0,74815.0,0.001512]
[1730986220527,0.29024102,74817.0,74815.0,0.001512]
[1730986220910,0.41469468,74817.0,74815.0,0.001512]
[1730986221318,0.002,74812.0,74803.0,0.001602]
[1730986221647,0.26224102,74812.0,74803.0,0.001602]
[1730986222671,0.27424102,74812.0,74803.0,0.001602]
[1730986222833,0.28824102,74812.0,74803.0,0.001602]
[1730986224429,0.002,74795.0,74793.0,0.0788]
[1730986224643,0.25869468,74795.0,74794.0,0.01398385]
[1730986226165,0.25869468,74795.0,74773.0,0.006512]
[1730986226166,0.002,74779.0,74773.0,0.001512]
[1730986226368,0.12645366,74775.0,74773.0,0.001512]
[1730986226570,0.13224102,74774.0,74773.0,0.001512]
[1730986226938,0.002,74782.0,74774.0,0.1237]
[1730986227141,0.20032051,74781.0,74774.0,0.1237]
[1730986227725,0.12445366,74780.0,74774.0,0.1237]
[1730986227902,0.002,74777.0,74774.0,0.1237]
[1730986228309,0.12445366,74780.0,74774.0,0.1237]
[1730986228310,0.002,74779.0,74774.0,0.1237]
[1730986228507,0.12445366,74780.0,74774.0,0.1237]
[1730986229111,0.002,74786.0,74774.0,0.1237]
[1730986229611,0.20032051,74782.0,74774.0,0.1237]
[1730986229838,0.002,74786.0,74774.0,0.1237]
[1730986230374,0.12445366,74787.0,74774.0,0.1237]
[1730986230375,0.12645366,74787.0,74774.0,0.1237]
[1730986231203,0.002,74781.0,74774.0,0.1237]
[1730986231402,0.12645366,74787.0,74774.0,0.1237]
[1730986231736,0.002,74787.0,74774.0,0.1237]
[1730986231875,0.20032051,74790.0,74775.0,0.00267449]
[1730986232222,0.20032051,74790.0,74777.0,0.005]
[1730986232431,0.20032051,74790.0,74778.0,0.0794]
[1730986233582,0.002,74788.0,74778.0,0.0794]
[1730986234166,0.002,74782.0,74778.0,0.0794]
[1730986234366,0.20032051,74790.0,74778.0,0.0794]
[1730986234367,0.002,74788.0,74778.0,0.0794]
[1730986235902,0.20032051,74790.0,74778.0,0.0794]
[1730986236998,0.002,74792.0,74778.0,0.0794]
[1730986237217,0.20032051,74790.0,74779.0,0.0475]
[1730986238150,0.002,74788.0,74780.0,0.01247931]
[1730986238364,0.002,74789.0,74779.0,0.0475]
[1730986238602,0.13424102,74789.0,74779.0,0.0475]
[1730986238825,0.001664,74791.0,74779.0,0.0475]
[1730986239049,0.20032051,74789.0,74779.0,0.0475]
[1730986239546,0.002,74787.0,74779.0,0.0475]
[1730986239745,0.002,74786.0,74779.0,0.0475]
[1730986240181,0.002,74788.0,74779.0,0.0475]
[1730986241070,0.20032051,74787.0,74779.0,0.0475]
[1730986241720,0.002,74784.0,74779.0,0.0475]
[1730986241929,0.002,74788.0,74779.0,0.0475]
[1730986242569,0.002,74789.0,74779.0,0.0475]
[1730986242917,0.002,74788.0,74779.0,0.0475]
[1730986243121,0.20232051,74788.0,74779.0,0.0475]
[1730986243326,0.002,74789.0,74779.0,0.05017429]
[1730986243538,0.001664,74791.0,74779.0,0.05017429]
[1730986243539,0.20232051,74790.0,74779.0,0.0475]
[1730986243875,0.002,74790.0,74779.0,0.0475]
[1730986244176,0.001664,74791.0,74780.0,0.0792]
[1730986244758,0.20032051,74790.0,74780.0,0.0792]
[1730986244965,0.001664,74791.0,74780.0,0.0792]
[1730986245171,0.001664,74791.0,74781.0,0.00267415]
[1730986245394,0.20032051,74790.0,74780.0,0.0792]
[1730986246062,0.002,74789.0,74780.0,0.0792]
[1730986247349,0.002,74789.0,74779.0,0.0362]
[1730986247557,0.20032051,74790.0,74781.0,0.00267415]
[1730986247770,0.001664,74791.0,74781.0,0.00267415]
[1730986247991,0.20032051,74790.0,74779.0,0.0362]
[1730986249482,0.002,74785.0,74779.0,0.0362]
[1730986249908,0.002,74789.0,74779.0,0.0362]
[1730986250427,0.20232051,74790.0,74780.0,0.0798]
[1730986250883,0.20032051,74790.0,74780.0,0.08247421]
[1730986251086,0.20232051,74790.0,74780.0,0.08247421]
[1730986251253,0.20232051,74790.0,74780.0,0.0798]
[1730986251454,0.20032051,74790.0,74780.0,0.0798]
[1730986251664,0.20032051,74790.0,74780.0,0.08247421]
[1730986251872,0.20032051,74790.0,74780.0,0.0798]
[1730986252328,0.20032051,74790.0,74780.0,0.08247421]
[1730986252524,0.001664,74790.0,74780.0,0.08247421]
[1730986252754,0.001664,74790.0,74780.0,0.0798]
[1730986252918,0.001664,74790.0,74780.0,0.08247421]
[1730986254109,0.001664,74790.0,74780.0,0.08247416]
[1730986254319,0.001664,74790.0,74781.0,0.005]
[1730986254512,0.001664,74790.0,74782.0,0.00267403]
[1730986254743,0.001664,74790.0,74781.0,0.005]
[1730986256110,0.001664,74790.0,74782.0,0.1328]
[1730986257730,0.20032051,74789.0,74782.0,0.1328]
[1730986259342,0.20232051,74789.0,74782.0,0.1328]
[1730986259573,0.002,74785.0,74782.0,0.1328]
[1730986259811,0.002,74782.0,74779.0,0.000832]
[1730986260064,0.002,74789.0,74779.0,0.000832]
[1730986260294,0.002,74784.0,74779.0,0.000832]
[1730986260512,0.002,74785.0,74779.0,0.000832]
[1730986260718,0.20032051,74788.0,74779.0,0.000832]
[1730986261169,0.002,74785.0,74779.0,0.000832]
[1730986261403,0.20032051,74788.0,74779.0,0.000832]
[1730986262277,0.001664,74790.0,74779.0,0.000832]
[1730986263184,0.001664,74790.0,74780.0,0.00267427]
[1730986263643,0.001664,74790.0,74779.0,0.000832]
[1730986264118,0.002,74784.0,74779.0,0.000832]
[1730986264570,0.002,74785.0,74779.0,0.000832]
[1730986265470,0.001664,74790.0,74779.0,0.000832]
[1730986266186,0.001664,74790.0,74780.0,0.13417438]
[1730986266401,0.001664,74790.0,74780.0,0.1315]
[1730986267145,0.001664,74790.0,74780.0,0.1265]
[1730986267690,0.002,74789.0,74780.0,0.1265]
[1730986268080,0.002,74789.0,74780.0,0.0491]
[1730986268518,0.003664,74790.0,74780.0,0.0491]
[1730986268728,0.001664,74790.0,74780.0,0.0491]
[1730986269160,0.001664,74790.0,74781.0,0.00267412]
[1730986269373,0.001664,74790.0,74782.0,0.0752]
[1730986269588,0.001664,74790.0,74783.0,0.00267412]
[1730986270328,0.001664,74790.0,74784.0,0.1248]
[1730986270540,0.001664,74790.0,74785.0,0.00267397]
[1730986271648,0.001664,74790.0,74786.0,0.0781]
[1730986271861,0.001664,74790.0,74787.0,0.00267398]
[1730986272755,0.001664,74790.0,74784.0,0.0495]
[1730986273014,0.001664,74790.0,74785.0,0.00267405]
[1730986273441,0.001664,74790.0,74784.0,0.0495]
[1730986273805,0.002,74788.0,74779.0,0.000832]